Cogmind - Beta 13 @@@ ROGUE MODE // 2024.06.05 @ 23:33:15 Player: Selene Result: Destroyed by as-30806 with Assembled Heavy Rifle Performance ------------- Evolutions (0) 0 Regions Visited (2) 400 Robots Destroyed (26) 130 Value Destroyed (465) 465 Prototype IDs (2) 40 Alien Tech Used (0) 0 Bonus (0) 0 TOTAL SCORE: 1035 Bonus ------- None Cogmind --------- Core Integrity 0/250 Matter 243/300 Energy 96/100 System Corruption 0% Temperature Cool (2) Movement Walking (190) Ox1 Location -10/Mines Parts ------- > --- POWER (1) -------- (None) > --- PROPULSION (2) --- Improved Aluminum Leg Improved Aluminum Leg > --- UTILITY (2) ------ Large Storage Unit Seismic Detector > --- WEAPON (2) ------- Assault Rifle Great Maul > --- INVENTORY (15) --- Light Treads Light Treads Improved Heat Sink Structural Scanner Visual Processing Unit Tractor Beam Assault Rifle Light Cannon Improved Datajack Heavy Hammer Peak State ------------ > --- POWER ------------ Light Nuclear Core > --- PROPULSION ------- Improved Aluminum Leg Improved Aluminum Leg > --- UTILITY ---------- Large Storage Unit Hardened Medium Armor Plating > --- WEAPON ----------- Heavy Hammer Great Maul > --- INVENTORY -------- Light Ion Engine Light Treads Light Treads Improved Aluminum Leg Improved Aluminum Leg Improved Heat Sink Structural Scanner Visual Processing Unit Seismic Detector Tractor Beam Assault Rifle Assault Rifle Light Cannon Grenade Launcher Improved Datajack [Rating: 18] Favorites ----------- Power Light Nuclear Core Engine Light Ion Engine Power Core Light Nuclear Core Propulsion Improved Aluminum Leg Leg Improved Aluminum Leg Utility Large Storage Unit Device Seismic Detector Storage Large Storage Unit Protection Hardened Medium Armor Plating Weapon Assault Rifle Ballistic Gun Assault Rifle Ballistic Cannon Light Cannon Launcher Grenade Launcher Impact Weapon Great Maul Build | -11 -10 -10 ------- Run | Yrd Mat Min Slots Evolved . | . . . Power . | . . . Propulsion . | . . . Utility . | . . . Weapon . | . . . Parts Attached 30 | 7 9 14 Power 3 | 1 1 1 Engine 2 | 1 . 1 Core 1 | . 1 . Reactor . | . . . Propulsion 7 | 2 3 2 Treads . | . . . Leg 7 | 2 3 2 Wheel . | . . . Hover . | . . . Flight . | . . . Utility 7 | 2 3 2 Device 4 | 1 2 1 Storage 2 | 1 1 . Processor . | . . . Hackware . | . . . Protection 1 | . . 1 Artifact . | . . . Weapon 13 | 2 2 9 Energy Gun . | . . . Energy Cannon . | . . . Ballistic Gun 5 | 2 2 1 Ballistic Cannon 2 | . . 2 Launcher 4 | . . 4 Special Weapon . | . . . Impact Weapon 2 | . . 2 Slashing Weapon . | . . . Piercing Weapon . | . . . Special Melee Weapon . | . . . Unidentified Prototypes . | . . . Parts Lost 6 | . . 6 Power 2 | . . 2 Propulsion 2 | . . 2 Utility 1 | . . 1 Weapon 1 | . . 1 Highest Loss Streak 4 | . . 4 To Critical Strikes . | . . . Average Slot Usage (%) 99 | . 100 96 Engine 6 | . 7 1 Core 7 | . 6 11 Leg 27 | . 28 27 Device 11 | . 14 3 Storage 14 | . 14 14 Protection 2 | . . 10 Ballistic Gun 22 | . 28 4 Ballistic Cannon 1 | . . 4 Launcher 1 | . . 4 Impact Weapon 3 | . . 13 Naked Turns . | . . . Heaviest Build 40 | 13 30 40 Greatest Support 26 | 20 26 26 Greatest Overweight (x) 3 | . 1 3 Average Overweight (x) . | . . 1 Largest Inventory Capacity 15 | 8 15 15 Average Capacity 11 | 7 11 15 Most Carried 15 | 6 15 15 Average Carried 9 | 4 9 14 Final Capacity 15 | 8 15 15 Final Carried 15 | 6 15 10 Class Distribution -------------------- 100% | Mutant Dominant Class ---------------- Mutant | -10/Materials Mutant | -10/Mines Resources | -11 -10 -10 ----------- Run | Yrd Mat Min Matter Collected 802 | 342 312 148 Remotely . | . . . Salvage Created 704 | 182 369 153 Parts 58 | 19 32 7 Haulers Intercepted 2 | . 2 . Recyclers Shooed . | . . . Parts Field Recycled . | . . . Retrieved Matter . | . . . Parts Self-Destructed . | . . . Prevented . | . . . Kills | -11 -10 -10 ------- Run | Yrd Mat Min Combat Hostiles Destroyed 16 | . 10 6 Melee 1 | . . 1 Guns 10 | . 10 . AOE 4 | . . 4 Classes Destroyed 7 | 2 4 1 Tunneler 6 | 6 . . Hauler 2 | . 2 . Recycler 1 | 1 . . Watcher 2 | . 2 . Swarmer 7 | . 6 1 Grunt 8 | . 4 4 Assembled 1 | . . 1 Best Kill Streak 6 | 2 6 2 Combat Bots Only 6 | . 6 2 Max Kills in Single Turn 1 | 1 1 1 Gunslinging . | . . . Exploded 1 | . . 1 Melee 1 | . . 1 Uniques/NPCs Destroyed . | . . . Combat | -11 -10 -10 -------- Run | Yrd Mat Min Hostile Shots Fired 70 | . 25 45 Missed 14 | . 6 8 Damage Taken 1123 | . 192 931 Core 251 | . 48 203 Absorbed by Shields . | . . . Core Remaining (%) 100 | 100 . . Volleys Fired 62 | 13 37 12 Largest 2 | 2 2 1 Hottest 40 | 40 40 30 Shots Fired 112 | 26 74 12 Gun 105 | 26 74 5 Cannon . | . . . Launcher 7 | . . 7 Special . | . . . Kinetic 105 | 26 74 5 Thermal . | . . . Explosive 7 | . . 7 Electromagnetic . | . . . Robot Hit Streak 19 | 11 19 2 Robot Miss Streak 7 | 2 7 1 Penetration Max . | . . . Secondary Targets 1 | . 1 . Max Gunslinging Chain 1 | . 1 . Shots Hit Robots 71 | 17 42 12 Core Hits 38 | 8 23 7 Critical Kills . | . . . Critical Parts Destroyed 2 | . . 2 Critical Strikes 2 | . . 2 Smash 2 | . . 2 Melee Attacks 9 | . . 9 Impact 9 | . . 9 Slashing . | . . . Piercing . | . . . Sneak Attacks . | . . . Combat Hostiles . | . . . Follow-up Attacks 1 | . . 1 Damage Inflicted 1224 | 208 501 515 Guns 748 | 208 501 39 Cannons . | . . . Explosions 223 | . . 223 Melee 253 | . . 253 Ramming . | . . . Kinetic 748 | 208 501 39 Thermal . | . . . Explosive 223 | . . 223 Electromagnetic . | . . . Impact 253 | . . 253 Slashing . | . . . Piercing . | . . . Highest Corruption . | . . . Average Corruption . | . . . Corruption Purged . | . . . Corruption Blocked . | . . . Overload Shots . | . . . Overflow Damage 82 | . . 82 Projectiles . | . . . Explosions 3 | . . 3 Melee 79 | . . 79 Knockbacks 2 | . . 2 Impact 2 | . . 2 Kinetic . | . . . Secondary . | . . . Self-Inflicted Damage 49 | . . 49 Shots 2 | . . 2 Rammed . | . . . Targets Rammed . | . . . Kicked . | . . . Crushed . | . . . Highest Temperature 28 | . 2 28 Average Temperature 10 | . 2 13 Received Heat Transfer 135 | . 51 84 Siege Activations . | . . . Robots Corrupted . | . . . Combat Hostiles . | . . . Parts Fried . | . . . Impact Corruptions 3 | . . 3 Robots Melted . | . . . Combat Hostiles . | . . . Parts Melted . | . . . Heat Transferred . | . . . Parts Sabotaged . | . . . Parts Stolen . | . . . Parts Stripped . | . . . Power Chain Reactions . | . . . Alert | -11 -10 -10 ------- Run | Yrd Mat Min Peak Influence 190 | 35 190 190 Initial 22 | . 22 5 Average 47 | 14 35 108 Maximum Alert Level . | . . . Low Security (%) 100 | 100 100 100 Level 1 . | . . . Level 2 . | . . . Level 3 . | . . . Level 4 . | . . . Level 5 . | . . . High Security . | . . . Max Security . | . . . Squads Dispatched 2 | . 1 1 Investigation 2 | . 1 1 Extermination . | . . . Reinforcement . | . . . Assault . | . . . Garrison . | . . . Intercept . | . . . Searches Triggered . | . . . Construction Impeded . | . . . Haulers Reinforced . | . . . Active Scanning Responses . | . . . Cargo Convoy Interrupts . | . . . Stealth | -11 -10 -10 --------- Run | Yrd Mat Min Distress Signals 3 | . 3 . Communications Jammed . | . . . Distress Signals . | . . . Times Spotted 30 | . 20 10 Peak Tracking Total 5 | . 5 3 Tactical Retreats . | . . . Traps | -11 -10 -10 ------- Run | Yrd Mat Min Traps Triggered 1 | . 1 . Indirectly . | . . . Trap Hack Attempts . | . . . Triggered . | . . . Disarmed . | . . . Reprogrammed . | . . . Reused . | . . . Traps Extracted . | . . . Installed . | . . . Triggered . | . . . Machines | -11 -10 -10 ---------- Run | Yrd Mat Min Machines Disabled . | . . . Max in Single Turn . | . . . Machines Repaired . | . . . Machines Dismantled . | . . . Machines Sabotaged . | . . . Overloaded Fab Kills . | . . . Hacking | -11 -10 -10 --------- Run | Yrd Mat Min Machines Accessed 11 | . 10 1 Terminals 8 | . 8 . Fabricators . | . . . Repair Stations 1 | . 1 . Recycling Units 1 | . 1 . Scanalyzers . | . . . Garrison Access . | . . . Total Hacks 20 | . 19 1 Successful 9 | . 8 1 Failed 11 | . 11 . Catastrophic 5 | . 5 . Database Lockouts . | . . . Manual 5 | . 5 . Terminals 17 | . 17 . Fabricators . | . . . Repair Stations 1 | . 1 . Recycling Units 1 | . 1 . Scanalyzers . | . . . Garrison Access . | . . . Terminal Hacks 7 | . 6 1 Prototype ID Bank 1 | . 1 . Open Door 1 | . . 1 Branch Access Points 1 | . 1 . Locate Traps 1 | . 1 . Dispatch Records 1 | . 1 . Hauler Manifests 1 | . 1 . Zone Layout 1 | . 1 . Fabricator Hacks . | . . . Repair Station Hacks 1 | . 1 . Scan Component 1 | . 1 . Recycling Unit Hacks 1 | . 1 . Report Inventory 1 | . 1 . Scanalyzer . | . . . Garrison Access Hacks . | . . . Unauthorized Hacks . | . . . Terminals . | . . . Fabricators . | . . . Repair Stations . | . . . Recycling Units . | . . . Scanalyzers . | . . . Garrison Access . | . . . Data Cores Recovered . | . . . Used . | . . . Hacking Detections 8 | . 8 . Full Trace Events . | . . . Feedback Events . | . . . Feedback Blocked . | . . . Robot Schematics Acquired . | . . . Robots Built . | . . . Authchips . | . . . Time . | . . . Total Robot Build Rating . | . . . Part Schematics Acquired . | . . . Parts Built . | . . . Authchips . | . . . Time . | . . . Total Part Build Rating . | . . . Parts Repaired . | . . . Time . | . . . Parts Recycled . | . . . Recycled Matter . | . . . Retrieved Matter . | . . . Retrieved Components . | . . . Parts Scanalyzed . | . . . Part Schematics Acquired . | . . . Parts Damaged . | . . . Bothacking | -11 -10 -10 ------------ Run | Yrd Mat Min Used RIF Installer . | . . . Robots Hacked . | . . . Non-combat . | . . . Combat . | . . . Robot Hacks Applied . | . . . Relay Couplers Released . | . . . Fabnet Peak Effective % . | . . . Robots Rewired . | . . . Allies Hacked . | . . . Hacks Repelled . | . . . Allies | -11 -10 -10 -------- Run | Yrd Mat Min Total Allies . | . . . Largest Group . | . . . Highest-Rated Group . | . . . Highest-Rated Ally . | . . . Total Orders . | . . . Ally Attacks . | . . . Total Damage . | . . . Kills . | . . . Allies Corrupted . | . . . Allies Melted . | . . . Intel | -11 -10 -10 ------- Run | Yrd Mat Min Robot Analysis Total . | . . . Derelict Logs Recovered . | . . . Drone Launches . | . . . Drone Recoveries . | . . . Exploration | -11 -10 -10 ------------- Run | Yrd Mat Min Turns Passed 1857 | 242 1246 369 Spaces Moved 990 | 153 685 152 Core 5 | 5 . . Treads . | . . . Legs 985 | 148 685 152 Wheels . | . . . Hover . | . . . Flight . | . . . Fastest Speed 50 | 50 120 190 Average Speed 150 | 117 148 190 Slowest Speed 330 | 120 190 330 Overloaded Moves . | . . . Propulsion Burnouts . | . . . Robots Hopped . | . . . Cave-ins Triggered . | . . . Exploration Rate (%) 43 | 6 98 26 Regions Visited 2 Branch Regions 1 Pre-discovered Areas . | . . . Known Exits Taken 1 | . 1 . Unknown Exits Taken 1 | 1 . . Scrap Searched . | . . . Spaces Dug . | . . . Terrain Destroyed 62 | . . 62 Melee . | . . . Projectile . | . . . AOE 62 | . . 62 Terrain Rammed . | . . . Walls Destroyed . | . . . Machines Disabled . | . . . Actions | -11 -10 -10 --------- Run | Yrd Mat Min Total 1235 | 186 845 204 Wait 104 | 7 84 13 Move 988 | 152 684 152 Hop . | . . . Pick Up 26 | 7 17 2 Fast Attach 9 | 6 1 2 Attach 6 | 1 . 5 Detach 1 | . . 1 Swap 15 | . 8 7 Drop 17 | . 14 3 Fire 62 | 13 37 12 Melee 7 | . . 7 Ram . | . . . Kick . | . . . Crush . | . . . Escape Stasis . | . . . Rewire . | . . . Trap . | . . . Miscellaneous . | . . . Route ------- -11/Scrapyard -10/Materials (discovered 5 exits: [*Mat x3] / *Min / [Sub]) -10/Mines (discovered 1 exit: [*Mat]) History --------- Turn | Location | Event 4 | -11/Scrapyard | Discovered new exit (range 15) 243 | -11/Scrapyard | Entered Materials 316 | -10/Materials | Build established: Mutant 451 | -10/Materials | Discovered new exit (range 9) 495 | -10/Materials | Identified exit to Mines 687 | -10/Materials | Discovered new exit (range 13) 1142 | -10/Materials | Discovered new exit (range 11) 1321 | -10/Materials | Discovered new exit (range 4) 1396 | -10/Materials | Discovered new exit (range 11) 1489 | -10/Materials | Entered Mines 1498 | -10/Mines | Met a Derelict shopkeep closing up shop 1613 | -10/Mines | Discovered new exit (range 11) 1726 | -10/Mines | Assembled infested the area 1790 | -10/Mines | Core integrity fell below 50% 1818 | -10/Mines | Lost 4 parts (1p2n1u) 1832 | -10/Mines | Core integrity fell below 20% 1858 | -10/Mines | Destroyed by as-30806 with Assembled Heavy Rifle Last Messages --------------- 01808_ Acquired Grenade Launcher. 01809_ The unstable cave ceiling collapses. 01810_ as-08957 destroyed. 01811_ U-05 Engineer builds a Wall. 01815_ U-05 Engineer lays Concrete. 01816_ U-05 Engineer builds a Wall. 01821_ The unstable cave ceiling collapses. 01821_ U-05 Engineer builds a Wall. 01821_ Acquired 7 matter. 01823_ Grenade Launcher destroyed. 01823_ Destroyed Grenade Launcher. 01824_ U-05 Engineer lays Concrete. 01825_ U-05 Engineer builds a Wall. 01834_ U-05 Engineer lays Concrete. 01835_ U-05 Engineer builds a Wall. 01836_ The unstable cave ceiling collapses. 01838_ Lgt. Ion Engine destroyed. 01844_ Acquired 7 matter. 01850_ Destroyed Asb. Hover Unit. 01858_ Acquired 24 matter. Map ----- +----------------------------------------------------+ | ??????????????????????????????????## #?????## | | ??????????????????????????????????# #????## | | ??????????????????????????????????# ####### | | ??????????????????????????????????# %% % | | ??????????????????????????????????# ## #### | | ??????????????????????????????????# ### #?## | | ??????????????????????????????????##" ##?# #??# | | ???????????????????????????????????#%###??# #??## | | ???????????????????????????????????#"#????# #???# | | ???????????????????????????????????# #????# #???# | | ???????????????????????????????????# #????# #???# | | ??????????????????????????????###### ##???# #???# | | ?????????????????????????????## # ###??# #???# | | ??????????????????????????#### # ## # ##?# #???# | | ??????????????????????????# # # ### ##??# | | ??????????????????????????# "" # ### #??# | | ??????????????????????????# " # ## #??# | | ???????????????????###????# " # # ## #??# | | ??????????????????## ????# # # ### ##### | | ??????????????????# ???# #### | | ??????????????????# #??#### ### #=###### | | ??????????? ??????# #????###### #?# # ####?# | | ??????????? ### ##???# #?# # ### | | ???????????# = #??## #?## ## ## | | ????????????# *%|! ! #### #??# #!# | | ??????????????????#%=!=|!@ a ##??###* [ | | ??????????????????##[**=% ! ### #????# < | | ???????????????????#[ ####### #####????# # | | ???????????????????## ##??????# #????????# # # # | | ????????????????????###????????# ????????######## | | ???????????????????????????????# ##??????????????? | | ???????????????????????????????# #???????????????? | | ???????????????????????????????# #???????????????? | | ???????????????????????????????? #???????????????? | | ???????????????????????????????? ????????????????? | | ???????????????????????????????? ????????????????? | | ???????????????????????????????? ????????????????? | | ???????????????????????????????? ????????????????? | | ???????????????????????????????? ????????????????? | | ?????????????????????????????????????????????????? | | ?????????????????????????????????????????????????? | | ?????????????????????????????????????????????????? | | ?????????????????????????????????????????????????? | | ?????????????????????????????????????????????????? | | ?????????????????????????????????????????????????? | | ?????????????????????????????????????????????????? | | | | | | | | | +----------------------------------------------------+ Best States ------------- Heat Dissipation 25 Energy Generation 14 Energy Capacity 160 Matter Stores 300 Matter Capacity 300 Sight Range 16 Terrain Scan Range 16 Terrain Scan Density 10 Armor Coverage 225 Evasion (%) 55 Item Schematics ----------------- None Robot Schematics ------------------ None Fabricated ------------ Nothing Alien Tech Used ----------------- None Achievements -------------- None Challenges ------------ None Game ------ Seed VisualTerrainAmplifier Manual? 0 Play Time 00:18:58 Cumulative 60.8 hours Start 2024.06.05 @ 23:15:56 End 2024.06.05 @ 23:33:15 Sessions 1 Manual Loads 0 Difficulty Rogue Special Mode None Game No. 40 Rogue 37 Adventurer 3 Explorer 0 Win Type - Total 1 Types 1/0/0/0/0/0/0/0/0 Lore% 30 Gallery% 41 Achievement% 33 Wizard Run 0 Options --------- Layout 2 ASCII 0 Keyboard 1 Movement Vi Keybinds 1 Fullscreen 2 Font 24/Smallcaps Map View 50x44 Zoom Use 0% Tactical HUD 1 Map Filters NONE Filters NONE Steam 1 RUN: 243fd0ca-bcaf-419d-bc9c-cfdc61a478b4